fUST/lending_fUST_20250525
["ID","MTS","AMOUNT","RATE_DAILY","PERIOD"]
[362274346,1748141437894,-207.4,0.00019166,2]
[362274347,1748141437904,-300.0,0.00019177,2]
[362274348,1748141437913,-300.0,0.00019177,2]
[362274349,1748141437923,-300.0,0.00019177,2]
[362274350,1748141437932,-7075.34042514,0.00019178,3]
[362274351,1748141437943,-1745.98416468,0.00019178,3]
[362274352,1748141437954,-5242.44218805,0.00019178,3]
[362274353,1748141437967,-755.8897517,0.00019178,3]
[362274549,1748141442911,-810.09,0.00019178,3]
[362274561,1748141445963,-500.0,0.00019178,3]
[362274562,1748141445975,-709.82680776,0.00019178,3]
[362274563,1748141445987,-909.64364974,0.00019178,3]
[362274564,1748141446017,-16411.91208668,0.00019178,3]
[362274565,1748141446037,-21391.30203515,0.00019178,3]
[362274566,1748141446124,-9818.11819049,0.00019178,3]
[362274567,1748141543620,5541.77061864,0.00024657,120]
[362274568,1748141980441,165.031248,0.00013699,2]
[362274605,1748142632287,-1200.0,0.00018174,2]
[362274606,1748142632298,-196.283637,0.00018175,2]
[362274607,1748142632308,-16033.9496287,0.00018175,2]
[362274608,1748142632317,-681.228387,0.00018794,2]
[362274609,1748142632327,-361.82439719,0.000189,2]
[362274610,1748142632337,-1006.07,0.000191,2]
[362274611,1748142632346,-207.4,0.00019166,2]
[362274612,1748142632356,-300.0,0.00019177,2]
[362274613,1748142632365,-160.37391087,0.00019177,2]
[362274615,1748142632375,-206.72,0.00019177,2]
[362274616,1748142632517,-34274.08966208,0.00019178,3]
[362274617,1748142632536,-321.82255844,0.00019178,2]
[362274618,1748142632546,-151.0,0.00019178,2]
[362274619,1748142632569,-430.0,0.00019178,2]
[362274620,1748142632584,-430.0,0.00019178,2]
[362274621,1748142632601,-430.0,0.00019178,2]
[362274622,1748142632611,-500.0,0.00019178,2]
[362274623,1748142632621,-430.0,0.00019178,2]
[362274624,1748142632631,-170.82410014,0.00019178,2]
[362274625,1748142632645,-430.0,0.00019178,2]
[362274626,1748142632655,-151.0,0.00019178,2]
[362274627,1748142632664,-151.0,0.00019178,2]
[362274628,1748142632676,-151.0,0.00019178,2]
[362274629,1748142632686,-439.33448332,0.00019178,2]
[362274630,1748142632710,-430.0,0.00019178,2]
[362274631,1748142632740,-430.0,0.00019178,2]
[362274632,1748142632759,-430.0,0.00019178,2]
[362274633,1748142632772,-430.0,0.00019178,2]
[362274634,1748142632783,-460.55163001,0.00019178,2]
[362274635,1748142632793,-430.0,0.00019178,2]
[362274636,1748142632826,-202.126853,0.00019178,2]
[362274637,1748142632837,-202.126853,0.00019178,2]
[362274638,1748142632848,-202.126853,0.00019178,2]
[362274639,1748142632860,-202.126853,0.00019178,2]
[362274640,1748142632872,-202.126853,0.00019178,2]
[362274641,1748142632883,-202.126853,0.00019178,2]
[362274643,1748142632893,-202.126853,0.00019178,2]
[362274645,1748142632903,-202.126853,0.00019178,2]
[362274647,1748142632913,-430.0,0.00019178,2]
[362274649,1748142632923,-444.42320171,0.00019178,2]
[362274651,1748142632932,-430.0,0.00019178,2]
[362274653,1748142632941,-430.0,0.00019178,2]
[362274654,1748142632960,-430.0,0.00019178,2]
[362274655,1748142632979,-430.0,0.00019178,2]
[362274656,1748142632989,-523.22564755,0.00019178,2]
[362274657,1748142632999,-430.0,0.00019178,2]
[362274658,1748142633009,-445.79176838,0.00019178,2]
[362274659,1748142633019,-430.0,0.00019178,2]
[362274660,1748142633028,-430.0,0.00019178,2]
[362274661,1748142633038,-513.94695903,0.00019178,2]
[362274662,1748142633047,-447.64337091,0.00019178,2]
[362274663,1748142633056,-430.0,0.00019178,2]
[362274664,1748142633066,-443.63198681,0.00019178,2]
[362274665,1748142633075,-430.0,0.00019178,2]
[362274666,1748142633085,-444.86606361,0.00019178,2]
[362274667,1748142633094,-430.0,0.00019178,2]
[362274668,1748142633104,-430.0,0.00019178,2]
[362274669,1748142633114,-430.0,0.00019178,2]
[362274670,1748142633124,-367.92497416,0.00019178,2]
[362274671,1748142633142,-151.0,0.00019178,2]
[362274672,1748142633152,-151.0,0.00019178,2]
[362274673,1748142633162,-151.53448,0.00019178,2]
[362274674,1748142633173,-430.0,0.00019178,2]
[362274675,1748142633183,-430.0,0.00019178,2]
[362274676,1748142633193,-430.0,0.00019178,2]
[362274677,1748142633203,-442.01769276,0.00019178,2]
[362274678,1748142633212,-430.0,0.00019178,2]
[362274679,1748142633222,-438.44883724,0.00019178,2]
[362274680,1748142633232,-430.0,0.00019178,2]
[362274681,1748142633241,-430.0,0.00019178,2]
[362274682,1748142633251,-495.33866964,0.00019178,2]
[362274683,1748142633261,-430.0,0.00019178,2]
[362274684,1748142633270,-430.0,0.00019178,2]
[362274685,1748142633280,-430.0,0.00019178,2]
[362274686,1748142633290,-430.0,0.00019178,2]
[362274687,1748142633300,-455.82626205,0.00019178,2]
[362274688,1748142633311,-226.9805444,0.00019178,2]
[362274689,1748142633324,-430.0,0.00019178,2]
[362274690,1748142633334,-430.0,0.00019178,2]
[362274691,1748142633344,-376.66228101,0.00019178,2]
[362274692,1748142633355,-430.0,0.00019178,2]
[362274693,1748142633365,-438.2588059,0.00019178,2]
[362274694,1748142633376,-430.0,0.00019178,2]
[362274695,1748142633386,-430.0,0.00019178,2]
[362274696,1748142633396,-430.0,0.00019178,2]
[362274697,1748142633406,-463.82136979,0.00019178,2]
[362274698,1748142633416,-151.0,0.00019178,2]
[362274699,1748142633428,-445.26380461,0.00019178,2]
[362274700,1748142633438,-430.0,0.00019178,2]
[362274701,1748142633448,-430.0,0.00019178,2]
[362274702,1748142633458,-430.0,0.00019178,2]
[362274703,1748142633468,-430.0,0.00019178,2]
[362274704,1748142633477,-430.0,0.00019178,2]
[362274705,1748142633487,-430.0,0.00019178,2]
[362274706,1748142633498,-1125.59,0.00019178,2]
[362274707,1748142633508,-430.0,0.00019178,2]
[362274708,1748142633518,-647.35,0.00019178,2]
[362274709,1748142633527,-430.0,0.00019178,2]
[362274710,1748142633537,-430.0,0.00019178,2]
[362274711,1748142633548,-436.92,0.00019178,2]
[362274712,1748142633558,-514.84,0.00019178,2]
[362274713,1748142633568,-531.97,0.00019178,2]
[362274714,1748142633577,-430.0,0.00019178,2]
[362274715,1748142633587,-430.0,0.00019178,2]
[362274716,1748142633597,-2164.0,0.00019178,2]
[362274717,1748142633607,-438.55036204,0.00019178,2]
[362274718,1748142633617,-430.0,0.00019178,2]
[362274719,1748142633627,-430.0,0.00019178,2]
[362274720,1748142633637,-430.0,0.00019178,2]
[362274721,1748142633651,-162.376352,0.00019178,2]
[362274722,1748142633666,-813.99,0.00019178,2]
[362274723,1748142633682,-430.0,0.00019178,2]
[362274724,1748142633697,-470.51971962,0.00019178,2]
[362274725,1748142633709,-500.0,0.00019178,2]
[362274726,1748142633723,-165.33217773,0.00019178,2]
[362274727,1748142633737,-434.94814597,0.00019178,2]
[362274728,1748142633750,-153.203586,0.00019178,2]
[362274729,1748142633765,-430.0,0.00019178,2]
[362274730,1748142633779,-622.75,0.00019178,2]
[362274731,1748142633792,-430.0,0.00019178,2]
[362274732,1748142633807,-430.0,0.00019178,2]
[362274733,1748142633822,-1336.98,0.00019178,2]
[362274734,1748142633836,-430.0,0.00019178,2]
[362274735,1748142633848,-442.48814772,0.00019178,2]
[362274736,1748142633860,-430.0,0.00019178,2]
[362274737,1748142633873,-1211.61,0.00019178,2]
[362274738,1748142633885,-430.0,0.00019178,2]
[362274739,1748142633898,-430.0,0.00019178,2]
[362274740,1748142633912,-1617.56,0.00019178,2]
[362274741,1748142633926,-430.0,0.00019178,2]
[362274742,1748142633940,-430.0,0.00019178,2]
[362274743,1748142633951,-430.0,0.00019178,2]
[362274744,1748142633962,-430.0,0.00019178,2]
[362274745,1748142633975,-430.0,0.00019178,2]
[362274746,1748142633987,-430.0,0.00019178,2]
[362274747,1748142634001,-430.0,0.00019178,2]
[362274748,1748142634014,-458.49,0.00019178,2]
[362274749,1748142634027,-430.0,0.00019178,2]
[362274750,1748142634040,-1084.81,0.00019178,2]
[362274751,1748142634053,-430.0,0.00019178,2]
[362274752,1748142634066,-430.0,0.00019178,2]
[362274753,1748142634080,-430.0,0.00019178,2]
[362274754,1748142634092,-430.0,0.00019178,2]
[362274755,1748142634104,-430.0,0.00019178,2]
[362274756,1748142634115,-1239.08,0.00019178,2]
[362274757,1748142634127,-430.0,0.00019178,2]
[362274758,1748142634140,-430.0,0.00019178,2]
[362274759,1748142634154,-409.46394943,0.00019178,2]
[362274760,1748142634168,-1984.48,0.00019178,2]
[362274761,1748142634179,-430.0,0.00019178,2]
[362274762,1748142634190,-471.994809,0.00019178,2]
[362274763,1748142634202,-433.8202224,0.00019178,2]
[362274764,1748142634215,-430.0,0.00019178,2]
[362274765,1748142634228,-440.26183374,0.00019178,2]
[362274766,1748142634238,-430.0,0.00019178,2]
[362274767,1748142634249,-430.0,0.00019178,2]
[362274768,1748142634260,-430.0,0.00019178,2]
[362274769,1748142634272,-430.0,0.00019178,2]
[362274770,1748142634286,-430.0,0.00019178,2]
[362274771,1748142634298,-1333.47,0.00019178,2]
[362274772,1748142634309,-430.0,0.00019178,2]
[362274773,1748142634321,-430.0,0.00019178,2]
[362274774,1748142634334,-449.28323962,0.00019178,2]
[362274775,1748142634346,-430.0,0.00019178,2]
[362274776,1748142634357,-430.0,0.00019178,2]
[362274777,1748142634368,-2406.04,0.00019178,2]
[362274778,1748142634380,-430.0,0.00019178,2]
[362274779,1748142634392,-628.79,0.00019178,2]
[362274780,1748142634403,-255.39442592,0.00019178,2]
[362274781,1748142634415,-430.0,0.00019178,2]
[362274782,1748142634428,-441.31971869,0.00019178,2]
[362274783,1748142634439,-430.0,0.00019178,2]
[362274784,1748142634451,-1398.07,0.00019178,2]
[362274785,1748142634463,-430.0,0.00019178,2]
[362274786,1748142634476,-430.0,0.00019178,2]
[362274787,1748142634487,-430.0,0.00019178,2]
[362274788,1748142634499,-430.0,0.00019178,2]
[362274789,1748142634511,-430.0,0.00019178,2]
[362274790,1748142634524,-430.0,0.00019178,2]
[362274791,1748142634535,-481.48654176,0.00019178,2]
[362274792,1748142634547,-895.81,0.00019178,2]
[362274793,1748142634560,-430.0,0.00019178,2]
[362274794,1748142634572,-151.0,0.00019178,2]
[362274795,1748142634583,-151.0,0.00019178,2]
[362274796,1748142634594,-151.0,0.00019178,2]
[362274797,1748142634606,-151.0,0.00019178,2]
[362274798,1748142634617,-453.19001993,0.00019178,2]
[362274799,1748142634630,-286.890676,0.00019178,2]
[362274800,1748142634641,-430.0,0.00019178,2]
[362274801,1748142634654,-1680.17,0.00019178,2]
[362274802,1748142634665,-872.77,0.00019178,2]
[362274803,1748142634678,-430.0,0.00019178,2]
[362274804,1748142634688,-908.34,0.00019178,2]
[362274805,1748142634700,-430.0,0.00019178,2]
[362274806,1748142634711,-445.14670364,0.00019178,2]
[362274807,1748142634724,-516.16,0.00019178,2]
[362274808,1748142634735,-195.870947,0.00019178,2]
[362274809,1748142634747,-2847.58807306,0.00019178,2]
[362274810,1748142634760,-628.37199564,0.00019205,2]
[362274811,1748142634772,-1155.59356957,0.00019352,2]
[362274812,1748142634784,-223.91726717,0.00019372,2]
[362274813,1748142634799,-160.0,0.0001945,2]
[362274814,1748142634813,-202.126853,0.0001945,2]
[362274815,1748142634827,-202.126853,0.0001945,2]
[362274816,1748142634839,-202.126853,0.0001945,2]
[362274817,1748142634850,-202.126853,0.0001945,2]
[362274818,1748142634859,-202.126853,0.0001945,2]
[362274819,1748142634868,-202.126853,0.0001945,2]
[362274820,1748142634878,-202.126853,0.0001945,2]
[362274821,1748142635043,-202.126853,0.0001945,2]
[362274822,1748142635052,-151.0,0.00019451,2]
[362274823,1748142635061,-244.493844,0.00019451,2]
[362274824,1748142635072,-500.0,0.00019451,2]
[362274825,1748142635081,-500.0,0.00019451,2]
[362274826,1748142635092,-368.88891544,0.00019451,2]
[362274827,1748142635101,-500.0,0.00019451,2]
[362274828,1748142635110,-165.73611704,0.00019451,2]
[362274829,1748142635120,-500.0,0.00019451,2]
[362274830,1748142635131,-500.0,0.00019451,2]
[362274831,1748142635141,-500.0,0.00019451,2]
[362274832,1748142635152,-500.0,0.00019451,2]
[362274833,1748142635164,-500.0,0.00019451,2]
[362274834,1748142635175,-500.0,0.00019451,2]
[362274835,1748142635186,-500.0,0.00019451,2]
[362274836,1748142635197,-500.0,0.00019451,2]
[362274837,1748142635207,-346.07875009,0.00019451,2]
[362274838,1748142635219,-500.0,0.00019451,2]
[362274839,1748142635229,-500.0,0.00019451,2]
[362274840,1748142635238,-500.0,0.00019451,2]
[362274841,1748142635248,-648.93334005,0.00019451,2]
[362274842,1748142635257,-500.0,0.00019451,2]
[362274843,1748142635266,-500.0,0.00019451,2]
[362274844,1748142635275,-500.0,0.00019451,2]
[362274845,1748142635286,-500.0,0.00019451,2]
[362274846,1748142635298,-500.0,0.00019451,2]
[362274847,1748142635309,-500.0,0.00019451,2]
[362274848,1748142635321,-500.0,0.00019451,2]
[362274849,1748142635331,-500.0,0.00019451,2]
[362274850,1748142635340,-500.0,0.00019451,2]
[362274851,1748142635350,-500.0,0.00019451,2]
[362274852,1748142635359,-500.0,0.00019451,2]
[362274853,1748142635368,-500.0,0.00019451,2]
[362274854,1748142635378,-500.0,0.00019451,2]
[362274855,1748142635388,-500.0,0.00019451,2]
[362274856,1748142635399,-500.0,0.00019451,2]
[362274857,1748142635409,-500.0,0.00019451,2]
[362274858,1748142635418,-500.0,0.00019451,2]
[362274859,1748142635429,-500.0,0.00019451,2]
[362274860,1748142635438,-500.0,0.00019451,2]
[362274861,1748142635447,-500.0,0.00019451,2]
[362274862,1748142635456,-500.0,0.00019451,2]
[362274863,1748142635466,-500.0,0.00019451,2]
[362274864,1748142635476,-500.0,0.00019451,2]
[362274865,1748142635485,-500.0,0.00019451,2]
[362274866,1748142635495,-500.0,0.00019451,2]
[362274867,1748142635504,-500.0,0.00019451,2]
[362274868,1748142635514,-500.0,0.00019451,2]
[362274869,1748142635524,-500.0,0.00019451,2]
[362274870,1748142635535,-500.0,0.00019451,2]
[362274871,1748142635546,-500.0,0.00019451,2]
[362274872,1748142635557,-304.14252793,0.00019451,2]
[362274873,1748142635568,-500.0,0.00019451,2]
[362274874,1748142635578,-500.0,0.00019451,2]
[362274875,1748142635587,-500.0,0.00019451,2]
[362274876,1748142635597,-500.0,0.00019451,2]
[362274877,1748142635606,-500.0,0.00019451,2]
[362274878,1748142635616,-500.0,0.00019451,2]
[362274879,1748142635629,-500.0,0.00019451,2]
[362274880,1748142635639,-500.0,0.00019451,2]
[362274881,1748142635648,-500.0,0.00019451,2]
[362274882,1748142635658,-500.0,0.00019451,2]
[362274883,1748142635667,-500.0,0.00019451,2]
[362274884,1748142635677,-195.07589722,0.00019451,2]
[362274885,1748142635687,-500.0,0.00019451,2]
[362274886,1748142635696,-500.0,0.00019451,2]
[362274887,1748142635706,-500.0,0.00019451,2]
[362274888,1748142635715,-500.0,0.00019451,2]
[362274889,1748142635729,-500.0,0.00019451,2]
[362274890,1748142635739,-500.0,0.00019451,2]
[362274891,1748142635751,-500.0,0.00019451,2]
[362274892,1748142635762,-500.0,0.00019451,2]
[362274893,1748142635775,-500.0,0.00019451,2]
[362274894,1748142635785,-500.0,0.00019451,2]
[362274895,1748142635796,-500.0,0.00019451,2]
[362274896,1748142635806,-500.0,0.00019451,2]
[362274897,1748142635817,-500.0,0.00019451,2]
[362274898,1748142635828,-500.0,0.00019451,2]
[362274899,1748142635838,-400.0,0.00019451,2]
[362274900,1748142635848,-160.0,0.00019451,2]
[362274901,1748142635858,-154.791929,0.00019452,2]
[362274902,1748142635867,-151.0,0.00019452,2]
[362274903,1748142635879,-151.0,0.00019452,2]
[362274904,1748142635889,-430.0,0.00019452,2]
[362274905,1748142635899,-430.0,0.00019452,2]
[362274906,1748142635909,-430.0,0.00019452,2]
[362274907,1748142635918,-500.0,0.00019452,2]
[362274908,1748142635929,-452.50295835,0.00019452,2]
[362274909,1748142635938,-430.0,0.00019452,2]
[362274910,1748142635947,-430.0,0.00019452,2]
[362274911,1748142635956,-370.02865627,0.00019452,2]
[362274912,1748142635966,-430.0,0.00019452,2]
[362274913,1748142635975,-202.126853,0.00019452,2]
[362274914,1748142635984,-202.126853,0.00019452,2]
[362274915,1748142635994,-202.126853,0.00019452,2]
[362274916,1748142636003,-202.12686,0.00019452,2]
[362274917,1748142636012,-430.0,0.00019452,2]
[362274918,1748142636022,-430.0,0.00019452,2]
[362274919,1748142636031,-442.74298017,0.00019452,2]
[362274920,1748142636041,-456.32235231,0.00019452,2]
[362274921,1748142636050,-430.0,0.00019452,2]
[362274922,1748142636059,-430.0,0.00019452,2]
[362274923,1748142636069,-496.12503132,0.00019452,2]
[362274924,1748142636078,-430.0,0.00019452,2]
[362274925,1748142636088,-421.91049449,0.00019452,2]
[362274926,1748142636097,-430.0,0.00019452,2]
[362274927,1748142636107,-440.99535333,0.00019452,2]
[362274928,1748142636116,-360.75622595,0.00019452,2]
[362274929,1748142636126,-440.42917571,0.00019452,2]
[362274930,1748142636138,-430.0,0.00019452,2]
[362274931,1748142636147,-466.43586066,0.00019452,2]
[362274932,1748142636159,-558.49557761,0.00019452,2]
[362274933,1748142636168,-489.21257723,0.00019452,2]
[362274934,1748142636179,-444.67390775,0.00019452,2]
[362274935,1748142636189,-430.0,0.00019452,2]
[362274936,1748142636199,-430.0,0.00019452,2]
[362274937,1748142636212,-442.38147107,0.00019452,2]
[362274938,1748142636222,-457.67069498,0.00019452,2]
[362274939,1748142636233,-430.0,0.00019452,2]
[362274940,1748142636244,-430.0,0.00019452,2]
[362274941,1748142636253,-430.0,0.00019452,2]
[362274942,1748142636262,-509.17725696,0.00019452,2]
[362274943,1748142636274,-430.0,0.00019452,2]
[362274944,1748142636285,-450.28654833,0.00019452,2]
[362274945,1748142636296,-430.0,0.00019452,2]
[362274946,1748142636307,-440.44556495,0.00019452,2]
[362274947,1748142636318,-430.0,0.00019452,2]
[362274948,1748142636327,-1125.59,0.00019452,2]
[362274949,1748142636337,-430.0,0.00019452,2]
[362274950,1748142636346,-647.35,0.00019452,2]
[362274951,1748142636356,-430.0,0.00019452,2]
[362274952,1748142636365,-436.92,0.00019452,2]
[362274953,1748142636375,-514.84,0.00019452,2]
[362274954,1748142636385,-531.97,0.00019452,2]
[362274955,1748142636395,-430.0,0.00019452,2]
[362274956,1748142636405,-2164.0,0.00019452,2]
[362274957,1748142636416,-430.0,0.00019452,2]
[362274958,1748142636425,-430.0,0.00019452,2]
[362274959,1748142636435,-444.04407863,0.00019452,2]
[362274960,1748142636445,-813.99,0.00019452,2]
[362274961,1748142636454,-430.0,0.00019452,2]
[362274962,1748142636464,-430.0,0.00019452,2]
[362274963,1748142636474,-622.75,0.00019452,2]
[362274964,1748142636483,-430.0,0.00019452,2]
[362274965,1748142636492,-1336.98,0.00019452,2]
[362274966,1748142636502,-430.0,0.00019452,2]
[362274967,1748142636513,-430.0,0.00019452,2]
[362274968,1748142636523,-1211.61,0.00019452,2]
[362274969,1748142636532,-433.96709743,0.00019452,2]
[362274970,1748142636542,-1617.56,0.00019452,2]
[362274971,1748142636551,-430.0,0.00019452,2]
[362274972,1748142636561,-430.0,0.00019452,2]
[362274973,1748142636571,-430.0,0.00019452,2]
[362274974,1748142636582,-484.3434833,0.00019452,2]
[362274975,1748142636592,-430.0,0.00019452,2]
[362274976,1748142636602,-430.0,0.00019452,2]
[362274977,1748142636612,-430.0,0.00019452,2]
[362274978,1748142636623,-458.49,0.00019452,2]
[362274979,1748142636634,-430.0,0.00019452,2]
[362274980,1748142636644,-1084.81,0.00019452,2]
[362274981,1748142636653,-430.0,0.00019452,2]
[362274982,1748142636662,-430.0,0.00019452,2]
[362274983,1748142636672,-430.0,0.00019452,2]
[362274984,1748142636682,-430.0,0.00019452,2]
[362274985,1748142636691,-1239.08,0.00019452,2]
[362274986,1748142636702,-430.0,0.00019452,2]
[362274987,1748142636712,-191.1186033,0.00019452,2]
[362274988,1748142636724,-1984.48,0.00019452,2]
[362274989,1748142636735,-430.0,0.00019452,2]
[362274990,1748142636745,-461.06129069,0.00019452,2]
[362274991,1748142636757,-430.0,0.00019452,2]
[362274992,1748142636767,-430.0,0.00019452,2]
[362274993,1748142636778,-1333.47,0.00019452,2]
[362274994,1748142636787,-430.0,0.00019452,2]
[362274995,1748142636799,-430.0,0.00019452,2]
[362274996,1748142636809,-526.50479024,0.00019452,2]
[362274997,1748142636818,-430.0,0.00019452,2]
[362274998,1748142636828,-2406.04,0.00019452,2]
[362274999,1748142636839,-430.0,0.00019452,2]
[362275000,1748142636850,-628.79,0.00019452,2]
[362275001,1748142636861,-430.0,0.00019452,2]
[362275002,1748142636872,-430.0,0.00019452,2]
[362275003,1748142636882,-1398.07,0.00019452,2]
[362275004,1748142636892,-440.43422458,0.00019452,2]
[362275005,1748142636901,-430.0,0.00019452,2]
[362275006,1748142636911,-440.37215013,0.00019452,2]
[362275007,1748142636920,-430.0,0.00019452,2]
[362275008,1748142636931,-430.0,0.00019452,2]
[362275009,1748142636940,-430.0,0.00019452,2]
[362275010,1748142636950,-895.81,0.00019452,2]
[362275011,1748142636961,-430.0,0.00019452,2]
[362275012,1748142636971,-430.0,0.00019452,2]
[362275013,1748142636983,-1680.17,0.00019452,2]
[362275014,1748142636994,-872.77,0.00019452,2]
[362275015,1748142637004,-430.0,0.00019452,2]
[362275016,1748142637014,-908.34,0.00019452,2]
[362275017,1748142637024,-430.0,0.00019452,2]
[362275018,1748142637035,-516.16,0.00019452,2]
[362275019,1748142637045,-152.3376978,0.000195,2]
[362275020,1748142637056,-500.0,0.00019537,2]
[362275021,1748142637066,-203.91913958,0.00019663,2]
[362275022,1748142637075,-23280.05377441,0.00019716,2]
[362275370,1748143116427,163.239575,0.00013699,2]
[362275658,1748143838256,-4541.75185877,0.00018108,2]
[362275659,1748143838313,-2072.19418833,0.00018108,2]
[362275660,1748143838322,-1778.4719396,0.00018214,2]
[362275661,1748143838331,-315.652128,0.00018282,2]
[362275662,1748143838341,-154.51740786,0.000187,2]
[362275663,1748143838350,-261.2638673,0.00018784,2]
[362275664,1748143838359,-241.2162648,0.000189,2]
[362275665,1748143838369,-354.2,0.00019,2]
[362275666,1748143838378,-207.4,0.00019166,2]
[362275667,1748143838387,-300.0,0.00019171,2]
[362275668,1748143838396,-300.0,0.00019172,2]
[362275669,1748143838406,-151.678026,0.00019178,2]
[362275670,1748143838415,-152.604537,0.00019178,2]
[362275671,1748143838424,-451.07015701,0.00019178,2]
[362275672,1748143838433,-441.63305789,0.00019178,2]
[362275673,1748143838442,-430.0,0.00019178,2]
[362275674,1748143838452,-430.0,0.00019178,2]
[362275675,1748143838461,-430.0,0.00019178,2]
[362275676,1748143838470,-430.0,0.00019178,2]
[362275677,1748143838479,-430.0,0.00019178,2]
[362275678,1748143838489,-430.0,0.00019178,2]
[362275679,1748143838498,-122.44711641,0.00019178,2]
[362276082,1748143846311,-443.19138753,0.00019178,2]
[362276083,1748143846321,-457.2650657,0.00019178,2]
[362276084,1748143846331,-430.0,0.00019178,2]
[362276085,1748143846341,-430.0,0.00019178,2]
[362276086,1748143846351,-437.68837806,0.00019178,2]
[362276087,1748143846360,-430.0,0.00019178,2]
[362276088,1748143846370,-430.0,0.00019178,2]
[362276089,1748143846379,-403.05799183,0.00019178,2]
[362276090,1748143846389,-437.87567329,0.00019178,2]
[362276091,1748143846398,-441.27121487,0.00019178,2]
[362276092,1748143846407,-174.2962899,0.00019178,2]
[362276093,1748143846419,-255.7037101,0.00019178,2]
[362276094,1748143846429,-12.73394045,0.00019178,2]
[362276095,1748143846441,-417.26605955,0.00019178,2]
[362276096,1748143846450,-430.0,0.00019178,2]
[362276097,1748143846460,-430.0,0.00019178,2]
[362276098,1748143846469,-437.12637948,0.00019178,2]
[362276099,1748143846479,-430.0,0.00019178,2]
[362276100,1748143846488,-430.0,0.00019178,2]
[362276101,1748143846497,-435.77061668,0.00019178,2]
[362276102,1748143846507,-442.49297109,0.00019178,2]
[362276103,1748143846517,-446.84158574,0.00019178,2]
[362276104,1748143846526,-169.94869051,0.00019178,2]
[362276105,1748143846536,-430.0,0.00019178,2]
[362276106,1748143846546,-430.0,0.00019178,2]
[362276107,1748143846555,-436.22542399,0.00019178,2]
[362276108,1748143846565,-450.55716575,0.00019178,2]
[362276109,1748143846574,-430.0,0.00019178,2]
[362276110,1748143846583,-449.17161289,0.00019178,2]
[362276111,1748143846592,-430.0,0.00019178,2]
[362276112,1748143846602,-430.0,0.00019178,2]
[362276113,1748143846611,-433.99501483,0.00019178,2]
[362276114,1748143846621,-430.0,0.00019178,2]
[362276115,1748143846630,-436.93167448,0.00019178,2]
[362276116,1748143846641,-430.0,0.00019178,2]
[362276117,1748143846652,-440.33825307,0.00019178,2]
[362276118,1748143846662,-430.0,0.00019178,2]
[362276119,1748143846673,-430.0,0.00019178,2]
[362276120,1748143846682,-430.0,0.00019178,2]
[362276121,1748143846692,-430.0,0.00019178,2]
[362276122,1748143846701,-430.0,0.00019178,2]
[362276123,1748143846711,-500.0,0.00019178,2]
[362276124,1748143846721,-436.34,0.00019178,2]
[362276125,1748143846731,-336.36575674,0.00019178,2]
[362276126,1748143846740,-1067.63,0.00019178,2]
[362276127,1748143846749,-430.0,0.00019178,2]
[362276128,1748143846759,-430.0,0.00019178,2]
[362276129,1748143846769,-430.0,0.00019178,2]
[362276130,1748143846779,-562.73,0.00019178,2]